fUSD/lending_fUSD_20260323
["ID","MTS","AMOUNT","RATE_DAILY","PERIOD"]
[408806550,1774285791266,-500.0,0.00046962,60]
[408806551,1774285791289,-500.0,0.00046962,60]
[408806552,1774285791312,-500.0,0.00046962,60]
[408806553,1774285791333,-500.0,0.00046962,60]
[408806554,1774285791355,-500.0,0.00046962,60]
[408806555,1774285791378,-500.0,0.00046962,60]
[408806556,1774285791402,-500.0,0.00046962,60]
[408806557,1774285791425,-500.0,0.00046962,60]
[408806558,1774285791450,-500.0,0.00046962,60]
[408806559,1774285791473,-500.0,0.00046962,60]
[408806560,1774285791495,-500.0,0.00046962,60]
[408806561,1774285791517,-500.0,0.00046962,60]
[408806562,1774285791540,-500.0,0.00046962,60]
[408806563,1774285791562,-500.0,0.00046962,60]
[408806564,1774285791585,-500.0,0.00046962,60]
[408806565,1774285791607,-499.0,0.00046962,60]
[408806566,1774285791633,-42931.0,0.00046962,31]
[408806567,1774285791658,-2189.58,0.00046962,90]
[408806568,1774285791681,-1056.16,0.00046962,120]
[408806569,1774285791704,-1056.16,0.00046962,120]
[408806570,1774285791728,-1056.16,0.00046962,120]
[408806571,1774285791751,-1056.16,0.00046962,120]
[408806572,1774285791774,-1056.16,0.00046962,120]
[408806573,1774285791796,-1056.16,0.00046962,120]
[408806574,1774285791818,-1056.16,0.00046962,120]
[408806575,1774285791842,-1056.16,0.00046962,120]
[408806576,1774285791868,-1056.16,0.00046962,120]
[408806577,1774285791893,-1056.16,0.00046962,120]
[408806578,1774285791916,-1056.16,0.00046962,120]
[408806579,1774285791940,-1056.16,0.00046962,120]
[408806580,1774285791963,-1056.16,0.00046962,120]
[408806581,1774285791986,-1056.16,0.00046962,120]
[408806582,1774285792009,-1056.16,0.00046962,120]
[408806583,1774285792387,-1056.16,0.00046962,120]
[408806584,1774285792412,-1056.16,0.00046962,120]
[408806585,1774285792437,-1056.16,0.00046962,120]
[408806586,1774285792460,-1056.16,0.00046962,120]
[408806587,1774285792482,-1056.16,0.00046962,120]
[408806588,1774285792504,-1056.16,0.00046962,120]
[408806589,1774285792527,-1056.16,0.00046962,120]
[408806590,1774285792551,-1056.16,0.00046962,120]
[408806591,1774285792574,-1056.17585392,0.00046962,120]
[408806592,1774285792596,-500.0,0.00046962,120]
[408806593,1774285792618,-356.66019011,0.00046962,120]
[408806594,1774285792642,-17751.75432716,0.00046962,30]
[408806595,1774285792664,-1000.0,0.00046962,30]
[408806596,1774285792690,-50000.0,0.00046962,49]
[408806597,1774285792715,-50000.0,0.00046962,50]
[408806598,1774285792744,-50000.0,0.00046962,51]
[408806599,1774285792769,-50000.0,0.00046962,52]
[408806600,1774285792793,-4500.0,0.00046962,30]
[408806601,1774285792816,-4500.0,0.00046962,120]
[408806602,1774285792839,-1500.0,0.00046962,30]
[408806603,1774285792864,-1500.0,0.00046962,120]
[408806604,1774285792888,-822.17,0.00046962,120]
[408806605,1774285792912,-822.17,0.00046962,120]
[408806606,1774285792938,-822.17,0.00046962,120]
[408806607,1774285792961,-822.17,0.00046962,120]
[408806608,1774285792984,-822.17,0.00046962,120]
[408806609,1774285793008,-822.17,0.00046962,120]
[408806610,1774285793031,-822.17,0.00046962,120]
[408806611,1774285793056,-822.17,0.00046962,120]
[408806612,1774285793079,-822.17,0.00046962,120]
[408806613,1774285793102,-822.17,0.00046962,120]
[408806614,1774285793123,-822.17,0.00046962,120]
[408806615,1774285793145,-822.17,0.00046962,120]
[408806616,1774285793168,-822.17,0.00046962,120]
[408806617,1774285793190,-822.17,0.00046962,120]
[408806618,1774285793212,-822.17,0.00046962,120]
[408806619,1774285793235,-822.17,0.00046962,120]
[408806620,1774285793258,-822.17,0.00046962,120]
[408806621,1774285793281,-822.17,0.00046962,120]
[408806622,1774285793305,-822.17,0.00046962,120]
[408806623,1774285793328,-822.17,0.00046962,120]
[408806624,1774285793353,-822.17,0.00046962,120]
[408806625,1774285793375,-822.17,0.00046962,120]
[408806626,1774285793398,-822.17,0.00046962,120]
[408806627,1774285793421,-822.24321316,0.00046962,120]
[408806628,1774285793443,-20287.30032122,0.00046962,30]
[408806629,1774285793464,-23632.89,0.00046962,120]
[408806630,1774285793487,-23632.89,0.00046962,120]
[408806631,1774285793512,-23632.89,0.00046962,120]
[408806632,1774285793536,-23632.89,0.00046962,120]
[408806633,1774285793559,-23632.89,0.00046962,120]
[408806634,1774285793581,-23632.89,0.00046962,120]
[408806635,1774285793604,-23632.89,0.00046962,120]
[408806636,1774285793625,-23632.89,0.00046962,120]
[408806637,1774285793647,-23632.89,0.00046962,120]
[408806638,1774285793669,-23632.89,0.00046962,120]
[408806639,1774285793693,-23632.89,0.00046962,120]
[408806640,1774285793719,-23632.89,0.00046962,120]
[408806641,1774285793740,-23632.89,0.00046962,120]
[408806642,1774285793762,-23632.89,0.00046962,120]
[408806643,1774285793785,-23632.89,0.00046962,120]
[408806644,1774285793809,-23632.89,0.00046962,120]
[408806645,1774285793831,-23632.89,0.00046962,120]
[408806646,1774285793864,-23632.89,0.00046962,120]
[408806647,1774285793887,-23632.89,0.00046962,120]
[408806648,1774285793912,-23632.89,0.00046962,120]
[408806649,1774285793934,-23632.89,0.00046962,120]
[408806650,1774285793957,-23632.89,0.00046962,120]
[408806651,1774285793981,-23632.89,0.00046962,120]
[408806652,1774285794005,-23633.107997,0.00046962,120]
[408806653,1774285794028,-500.0,0.00046962,120]
[408806654,1774285794051,-500.0,0.00046962,120]
[408806655,1774285794075,-500.0,0.00046962,120]
[408806656,1774285794097,-500.0,0.00046962,120]
[408806657,1774285794120,-500.0,0.00046962,120]
[408806658,1774285794143,-500.0,0.00046962,120]
[408806659,1774285794166,-500.0,0.00046962,120]
[408806660,1774285794188,-500.0,0.00046962,120]
[408806661,1774285794210,-563.53383802,0.00046962,120]
[408806662,1774285794232,-151.0,0.00046962,120]
[408806663,1774285794254,-512.99,0.00046962,120]
[408806664,1774285794277,-512.99,0.00046962,120]
[408806665,1774285794298,-512.99,0.00046962,120]
[408806666,1774285794319,-512.99,0.00046962,120]
[408806667,1774285794341,-512.99,0.00046962,120]
[408806668,1774285794363,-512.99,0.00046962,120]
[408806669,1774285794385,-512.99,0.00046962,120]
[408806670,1774285794407,-512.99,0.00046962,120]
[408806671,1774285794429,-512.99,0.00046962,120]
[408806672,1774285794451,-512.99,0.00046962,120]
[408806673,1774285794472,-512.99,0.00046962,120]
[408806674,1774285794494,-512.99,0.00046962,120]
[408806675,1774285794517,-512.99,0.00046962,120]
[408806676,1774285794540,-512.99,0.00046962,120]
[408806677,1774285794563,-512.99,0.00046962,120]
[408806678,1774285794586,-512.99,0.00046962,120]
[408806679,1774285794613,-512.99,0.00046962,120]
[408806680,1774285794637,-512.99,0.00046962,120]
[408806681,1774285794662,-512.99,0.00046962,120]
[408806682,1774285794683,-512.99,0.00046962,120]
[408806683,1774285794706,-512.99,0.00046962,120]
[408806684,1774285794728,-512.99,0.00046962,120]
[408806685,1774285794749,-512.99,0.00046962,120]
[408806686,1774285794771,-513.20361017,0.00046962,120]
[408806687,1774285794796,-18899.859255,0.00046962,120]
[408806688,1774285794819,-988.52,0.00046962,30]
[408806689,1774285794841,-988.52,0.00046962,30]
[408806690,1774285794871,-988.52,0.00046962,30]
[408806691,1774285794893,-988.52,0.00046962,30]
[408806692,1774285794915,-988.52,0.00046962,30]
[408806693,1774285794938,-988.52,0.00046962,30]
[408806694,1774285794960,-988.52,0.00046962,30]
[408806695,1774285794985,-988.52,0.00046962,30]
[408806696,1774285795010,-988.52,0.00046962,30]
[408806697,1774285795033,-988.52,0.00046962,30]
[408806698,1774285795057,-988.52,0.00046962,30]
[408806699,1774285795079,-988.52,0.00046962,30]
[408806700,1774285795101,-988.52,0.00046962,30]
[408806701,1774285795397,-988.52,0.00046962,30]
[408806702,1774285795419,-988.52,0.00046962,30]
[408806703,1774285795441,-988.52,0.00046962,30]
[408806704,1774285795462,-988.52,0.00046962,30]
[408806705,1774285795484,-988.52,0.00046962,30]
[408806706,1774285795506,-988.52,0.00046962,30]
[408806707,1774285795527,-988.52,0.00046962,30]
[408806708,1774285795550,-988.52,0.00046962,30]
[408806709,1774285795571,-988.52,0.00046962,30]
[408806710,1774285795593,-988.52,0.00046962,30]
[408806711,1774285795614,-988.73511301,0.00046962,30]
[408806712,1774285795636,-699289.13539649,0.00046962,120]
[408806713,1774285802087,-636370.86460351,0.00046962,120]
[408806714,1774285802113,-3000.0,0.00046962,30]
[408806715,1774285802137,-3000.0,0.00046962,30]
[408806716,1774285802162,-5000.0,0.00046962,30]
[408806717,1774285802194,-367.10329434,0.00046962,30]
[408806718,1774285802221,-639.05101044,0.00046962,60]
[408806719,1774285802247,-500.0,0.00046962,60]
[408806720,1774285802273,-500.0,0.00046962,60]
[408806721,1774285802304,-557.872278,0.00046962,60]
[408806722,1774285802335,-500.0,0.00046962,60]
[408806723,1774285802360,-500.0,0.00046962,60]
[408806724,1774285802387,-298.73993884,0.00046962,60]
[408806725,1774285802413,-342.40603501,0.00046962,60]
[408806726,1774285802440,-500.0,0.00046962,120]
[408806727,1774285802465,-256.39096701,0.00046962,120]
[408806728,1774285802491,-592.28672857,0.00046962,120]
[408806729,1774285802517,-500.0,0.00046962,60]
[408806730,1774285802541,-890.1724,0.00046962,30]
[408806731,1774285802572,-547.35,0.00046962,120]
[408806732,1774285802596,-547.35,0.00046962,120]
[408806733,1774285802629,-547.35,0.00046962,120]
[408806734,1774285802656,-547.35,0.00046962,120]
[408806735,1774285802682,-547.35,0.00046962,120]
[408806736,1774285802709,-547.35,0.00046962,120]
[408806737,1774285802735,-547.35,0.00046962,120]
[408806738,1774285802762,-547.35,0.00046962,120]
[408806739,1774285802788,-547.35,0.00046962,120]
[408806740,1774285802818,-547.35,0.00046962,120]
[408806741,1774285802845,-547.35,0.00046962,120]
[408806742,1774285802873,-547.35,0.00046962,120]
[408806743,1774285802899,-547.35,0.00046962,120]
[408806744,1774285802925,-547.35,0.00046962,120]
[408806745,1774285802954,-547.35,0.00046962,120]
[408806746,1774285802981,-547.35,0.00046962,120]
[408806747,1774285803014,-547.35,0.00046962,120]
[408806748,1774285803044,-547.35,0.00046962,120]
[408806749,1774285803076,-547.35,0.00046962,120]
[408806750,1774285803104,-547.35,0.00046962,120]
[408806751,1774285803130,-547.35,0.00046962,120]
[408806752,1774285803156,-547.35,0.00046962,120]
[408806753,1774285803182,-547.35,0.00046962,120]
[408806754,1774285803207,-547.48780736,0.00046962,120]
[408806755,1774285803232,-500.0,0.00046962,120]
[408806756,1774285803257,-441.22752415,0.00046962,120]
[408806757,1774285803283,-635.53615448,0.00046962,120]
[408806758,1774285803311,-500.0,0.00046962,120]
[408806759,1774285803338,-495.999884,0.00046962,120]
[408806760,1774285803363,-40000.00000001,0.00046962,30]
[408806761,1774285803389,-241.46336635,0.00046962,120]
[408806762,1774285803414,-273.57841813,0.00046962,120]
[408806763,1774285803439,-169.70848187,0.00046962,120]
[408806764,1774285803467,-171.26303499,0.00046962,120]
[408806765,1774285803493,-160.78627727,0.00046962,120]
[408806766,1774285803519,-230.49574482,0.00046962,120]
[408806767,1774285803544,-186.39231547,0.00046962,120]
[408806768,1774285803572,-386.66064,0.00046962,120]
[408806769,1774285803599,-500.0,0.00046962,120]
[408806770,1774285803627,-338.04806491,0.00046962,120]
[408806771,1774285803657,-199.88030176,0.00046962,120]
[408806772,1774285803682,-171.44933075,0.00046962,120]
[408806773,1774285803712,-185.41757603,0.00046962,120]
[408806774,1774285803739,-255.73517645,0.00046962,120]
[408806775,1774285803764,-2809.712316,0.00046962,120]
[408806776,1774285803789,-155.5244627,0.00046962,120]
[408806777,1774285803816,-191.74743754,0.00046962,120]
[408806778,1774285803840,-150.948664,0.00046962,120]
[408806779,1774285803869,-235.05339785,0.00046962,120]
[408806780,1774285803895,-259.68825812,0.00046962,120]
[408806781,1774285803921,-151.55488026,0.00046962,120]
[408806782,1774285803948,-158.14150177,0.00046962,120]
[408806783,1774285803973,-185.54438589,0.00046962,30]
[408806784,1774285803997,-166.87948963,0.00046962,120]
[408806785,1774285804022,-202.23839899,0.00046962,120]
[408806786,1774285804048,-162.25987744,0.00046962,120]
[408806787,1774285804072,-156.8900022,0.00046962,120]
[408806788,1774285804098,-200.22046588,0.00046962,120]
[408806789,1774285804123,-210.41032686,0.00046962,120]
[408806790,1774285804149,-150.4613655,0.00046962,120]
[408806791,1774285804173,-281.51816093,0.00046962,120]
[408806792,1774285804198,-349.77769807,0.00046962,120]
[408806793,1774285804222,-267.25249598,0.00046962,120]
[408806794,1774285804248,-154.3143149,0.00046962,120]
[408806795,1774285804274,-163.20023508,0.00046962,120]
[408806796,1774285804300,-207.93189067,0.00046962,120]
[408806797,1774285804324,-266.93570344,0.00046962,120]
[408806798,1774285804349,-283.6026111,0.00046962,120]
[408806799,1774285804387,-621.37499465,0.00046962,120]
[408806800,1774285804416,-166.60682032,0.00046962,120]
[408806801,1774285804442,-150.7585497,0.00046962,120]
[408806802,1774285804470,-277.7309159,0.00046962,120]
[408806803,1774285804495,-166.13631346,0.00046962,120]
[408806804,1774285804519,-5000.0,0.00046962,120]
[408806805,1774285804545,-171.75274425,0.00046962,120]
[408806806,1774285804572,-162.57380262,0.00046962,120]
[408806807,1774285804597,-153.62189576,0.00046962,120]
[408806808,1774285804622,-162.23751329,0.00046962,120]
[408806809,1774285804647,-5000.0,0.00046962,120]
[408806810,1774285804671,-201.11577793,0.00046962,120]
[408806811,1774285804696,-173.52730199,0.00046962,120]
[408806812,1774285805335,-303.67410311,0.00046962,120]
[408806813,1774285805363,-155.86634233,0.00046962,120]
[408806814,1774285805386,-182.19388864,0.00046962,120]
[408806815,1774285805410,-500.0,0.00046962,120]
[408806816,1774285805434,-176.45009135,0.00046962,120]
[408806817,1774285805458,-162.33111877,0.00046962,120]
[408806818,1774285805481,-5000.0,0.00046962,120]
[408806819,1774285805505,-290.99007477,0.00046962,120]
[408806820,1774285805527,-216.60295662,0.00046962,120]
[408806821,1774285805552,-511.07645183,0.00046962,120]
[408806822,1774285805576,-275.73771762,0.00046962,120]
[408806823,1774285805601,-286.55671556,0.00046962,120]
[408806824,1774285805624,-5000.0,0.00046962,120]
[408806825,1774285805647,-150.42863687,0.00046962,120]
[408806826,1774285805669,-177.5364203,0.00046962,120]
[408806827,1774285805692,-187.32918091,0.00046962,120]
[408806828,1774285805716,-195.29090937,0.00046962,120]
[408806829,1774285805739,-643.05066594,0.00046962,120]
[408806830,1774285805768,-500.0,0.00046962,120]
[408806831,1774285805792,-500.0,0.00046962,120]
[408806832,1774285805817,-265.87227891,0.00046962,60]
[408806833,1774285805840,-5000.0,0.00046962,120]
[408806834,1774285805867,-500.0,0.00046962,120]
[408806835,1774285805891,-262.18220808,0.00046962,120]
[408806836,1774285805914,-155.01537231,0.00046962,120]
[408806837,1774285805939,-193.44502673,0.00046962,120]
[408806838,1774285805962,-191.78952021,0.00046962,120]
[408806839,1774285805987,-500.0,0.00046962,120]
[408806840,1774285806011,-183.63973318,0.00046962,120]
[408806841,1774285806034,-344.84883868,0.00046962,120]
[408806842,1774285806058,-189.19182802,0.00046962,120]
[408806843,1774285806081,-551.01015286,0.00046962,120]
[408806844,1774285806104,-234.95390409,0.00046962,120]
[408806845,1774285806127,-500.0,0.00046962,120]
[408806846,1774285806152,-500.0,0.00046962,120]
[408806847,1774285806178,-5000.0,0.00046962,120]
[408806848,1774285806203,-204.5449,0.00046962,120]
[408806849,1774285806231,-183.07474846,0.00046962,120]
[408806850,1774285806256,-224.14598665,0.00046962,120]
[408806851,1774285806279,-157.64970446,0.00046962,120]
[408806852,1774285806304,-401.37304235,0.00046962,120]
[408806853,1774285806328,-156.60244199,0.00046962,120]
[408806854,1774285806351,-216.12821432,0.00046962,120]
[408806855,1774285806375,-155.27341898,0.00046962,120]
[408806856,1774285806401,-165.49929852,0.00046962,120]
[408806857,1774285806426,-200.96712518,0.00046962,120]
[408806858,1774285806450,-411.73931355,0.00046962,120]
[408806859,1774285806473,-256.73869918,0.00046962,120]
[408806860,1774285806496,-447.30825312,0.00046962,120]
[408806861,1774285806520,-158.31806999,0.00046962,120]
[408806862,1774285806542,-242.67931556,0.00046962,120]
[408806863,1774285806567,-266.51401894,0.00046962,120]
[408806864,1774285806590,-275.20127301,0.00046962,120]
[408806865,1774285806614,-159.41391282,0.00046962,120]
[408806866,1774285806637,-203.21834699,0.00046962,120]
[408806867,1774285806660,-162.347998,0.00046962,120]
[408806868,1774285806683,-177.35333662,0.00046962,120]
[408806869,1774285806706,-257.77048814,0.00046962,120]
[408806870,1774285806730,-159.49766248,0.00046962,120]
[408806871,1774285806753,-166.59078687,0.00046962,120]
[408806872,1774285806776,-213.15795278,0.00046962,120]
[408806873,1774285806800,-209.07849844,0.00046962,120]
[408806874,1774285806823,-500.0,0.00046962,120]
[408806875,1774285806854,-228.9278341,0.00046962,120]
[408806876,1774285806888,-211.18075821,0.00046962,120]
[408806877,1774285806914,-256.01015747,0.00046962,120]
[408806878,1774285806940,-274.18397497,0.00046962,120]
[408806879,1774285806965,-205.65998376,0.00046962,120]
[408806880,1774285806989,-321.48271233,0.00046962,120]
[408806881,1774285807014,-238.10267402,0.00046962,120]
[408806882,1774285807039,-196.587107,0.00046962,120]
[408806883,1774285807066,-151.01938329,0.00046962,120]
[408806884,1774285807091,-253.71470931,0.00046962,120]
[408806885,1774285807115,-231.99536008,0.00046962,120]
[408806886,1774285807140,-362.19619006,0.00046962,120]
[408806887,1774285807164,-165.46431772,0.00046962,120]
[408806888,1774285807189,-271.99525682,0.00046962,120]
[408806889,1774285807214,-173.15573979,0.00046962,120]
[408806890,1774285807238,-224.69197399,0.00046962,120]
[408806891,1774285807264,-212.51869344,0.00046962,120]
[408806892,1774285807296,-500.0,0.00046962,120]
[408806893,1774285807325,-500.0,0.00046962,120]
[408806894,1774285807351,-500.0,0.00046962,120]
[408806895,1774285807377,-218.10033125,0.00046962,120]
[408806896,1774285807401,-345.94807051,0.00046962,120]
[408806897,1774285807426,-159.47277269,0.00046962,120]
[408806898,1774285807451,-565.43330556,0.00046962,120]
[408806899,1774285807476,-164.55925029,0.00046962,120]
[408806900,1774285807501,-297.47250319,0.00046962,120]
[408806901,1774285807527,-500.0,0.00046962,120]
[408806902,1774285807554,-273.98968119,0.00046962,120]
[408806903,1774285807579,-500.0,0.00046962,120]
[408806904,1774285807604,-152.7868988,0.00046962,120]
[408806905,1774285807630,-184.31955013,0.00046962,120]
[408806906,1774285807655,-181.79748051,0.00046962,120]
[408806907,1774285807679,-205.61844917,0.00046962,120]
[408806908,1774285807710,-262.20606446,0.00046962,120]
[408806909,1774285807736,-160.94200984,0.00046962,120]
[408806910,1774285807762,-282.15528106,0.00046962,120]
[408806911,1774285807789,-208.00195306,0.00046962,120]
[408806912,1774285807815,-181.11897962,0.00046962,120]
[408806913,1774285807842,-176.21262974,0.00046962,120]
[408806914,1774285807878,-152.55025762,0.00046962,120]
[408806915,1774285807903,-169.44863519,0.00046962,120]
[408806916,1774285807928,-289.84043344,0.00046962,120]
[408806917,1774285807952,-159.69517616,0.00046962,120]
[408806918,1774285807977,-181.47732326,0.00046962,120]
[408806919,1774285808003,-500.0,0.00046962,120]
[408806920,1774285808029,-394.07896037,0.00046962,120]
[408806921,1774285808055,-494.85797797,0.00046962,120]
[408806922,1774285808080,-267.61917202,0.00046962,120]
[408806923,1774285808105,-194.30906443,0.00046962,120]
[408806924,1774285808135,-153.17826371,0.00046962,120]
[408806925,1774285808160,-187.75706906,0.00046962,120]
[408806926,1774285808185,-150.34314241,0.00046962,120]
[408806927,1774285808210,-200.79421113,0.00046962,120]
[408806928,1774285808235,-151.26466895,0.00046962,120]
[408806929,1774285808261,-182.62374092,0.00046962,120]
[408806930,1774285808826,-206.7149987,0.00046962,120]
[408806931,1774285808852,-210.62135023,0.00046962,120]
[408806932,1774285808878,-213.53787838,0.00046962,120]
[408806933,1774285808901,-181.77101478,0.00046962,120]
[408806934,1774285808925,-282.26307148,0.00046962,120]
[408806935,1774285808949,-176.92328131,0.00046962,120]
[408806936,1774285808972,-226.0249686,0.00046962,120]
[408806937,1774285808997,-248.06087268,0.00046962,120]
[408806938,1774285809024,-360.88297291,0.00046962,120]
[408806939,1774285809048,-568.95493656,0.00046962,120]
[408806940,1774285809074,-162.58464466,0.00046962,120]
[408806941,1774285809097,-500.0,0.00046962,120]
[408806942,1774285809120,-290.13501071,0.00046962,120]
[408806943,1774285809144,-184.95259434,0.00046962,120]
[408806944,1774285809182,-151.60683818,0.00046962,120]
[408806945,1774285809210,-414.24226474,0.00046962,120]
[408806946,1774285809237,-500.0,0.00046962,120]
[408806947,1774285809261,-500.0,0.00046962,120]
[408806948,1774285809286,-635.87741195,0.00046962,120]
[408806949,1774285809310,-203.46335125,0.00046962,120]
[408806950,1774285809335,-308.61908899,0.00046962,120]
[408806951,1774285809359,-500.0,0.00046962,120]
[408806952,1774285809384,-177.41895437,0.00046962,120]
[408806953,1774285809409,-200.3942,0.00046962,120]
[408806954,1774285809433,-335.1520942,0.00046962,120]
[408806955,1774285809459,-176.52141719,0.00046962,120]
[408806956,1774285809486,-161.89766326,0.00046962,30]
[408806957,1774285809511,-311.49987409,0.00046962,120]
[408806958,1774285809539,-500.0,0.00046962,120]
[408806959,1774285809575,-382.71377502,0.00046962,120]
[408806960,1774285809606,-189.51424704,0.00046962,120]
[408806961,1774285809635,-152.18011293,0.00046962,120]
[408806962,1774285809663,-301.81901268,0.00046962,60]
[408806963,1774285809692,-158.49880907,0.00046962,120]
[408806964,1774285809720,-178.43680729,0.00046962,120]
[408806965,1774285809753,-223.37718185,0.00046962,120]
[408806966,1774285809780,-156.48651671,0.00046962,120]
[408806967,1774285809811,-165.31904142,0.00046962,120]
[408806968,1774285809838,-172.24862387,0.00046962,120]
[408806969,1774285809869,-177.23451125,0.00046962,120]
[408806970,1774285809896,-207.21687556,0.00046962,120]
[408806971,1774285809924,-151.15957273,0.00046962,120]
[408806972,1774285809950,-160.78132839,0.00046962,120]
[408806973,1774285809974,-156.736082,0.00046962,120]
[408806974,1774285809999,-190.19081877,0.00046962,120]
[408806975,1774285810033,-193.33345271,0.00046962,120]
[408806976,1774285810059,-157.12168387,0.00046962,120]
[408806977,1774285810086,-176.2755795,0.00046962,120]
[408806978,1774285810112,-167.98252545,0.00046962,120]
[408806979,1774285810138,-158.65224233,0.00046962,120]
[408806980,1774285810164,-156.27224373,0.00046962,120]
[408806981,1774285810189,-151.18675832,0.00046962,120]
[408806982,1774285810215,-153.02920061,0.00046962,120]
[408806983,1774285810241,-150.19874486,0.00046962,120]
[408806984,1774285810268,-156.95906062,0.00046962,120]
[408806985,1774285810293,-197.46811254,0.00046962,120]
[408806986,1774285810320,-176.54242888,0.00046962,120]
[408806987,1774285810345,-151.23305394,0.00046962,120]
[408806988,1774285810371,-180.49111054,0.00046962,120]
[408806989,1774285810395,-156.43610975,0.00046962,120]
[408806990,1774285810420,-198.5866277,0.00046962,120]
[408806991,1774285810445,-182.58990922,0.00046962,120]
[408806992,1774285810469,-181.9851181,0.00046962,120]
[408806993,1774285810493,-183.62246134,0.00046962,120]
[408806994,1774285810517,-163.46623245,0.00046962,120]
[408806995,1774285810541,-157.6232152,0.00046962,120]
[408806996,1774285810565,-156.41790235,0.00046962,120]
[408806997,1774285810591,-155.81877908,0.00046962,120]
[408806998,1774285810615,-165.68696907,0.00046962,120]
[408806999,1774285810640,-158.9445841,0.00046962,120]
[408807000,1774285810665,-153.7010858,0.00046962,120]
[408807001,1774285810690,-177.47568612,0.00046962,120]
[408807002,1774285810714,-193.78069298,0.00046962,120]
[408807003,1774285810739,-169.37884344,0.00046962,120]
[408807004,1774285810765,-174.36685976,0.00046962,120]
[408807005,1774285810790,-165.17147093,0.00046962,120]
[408807006,1774285810815,-197.59835389,0.00046962,120]
[408807007,1774285810840,-157.97571338,0.00046962,120]
[408807008,1774285810870,-155.47966784,0.00046962,120]
[408807009,1774285810896,-154.62967313,0.00046962,120]
[408807010,1774285810924,-192.22793433,0.00046962,120]
[408807011,1774285810950,-157.57619161,0.00046962,120]
[408807012,1774285810974,-202.01117041,0.00046962,37]
[408807013,1774285810999,-174.52664788,0.00046962,120]
[408807014,1774285811025,-171.62734643,0.00046962,120]
[408807015,1774285811050,-177.49111278,0.00046962,120]
[408807016,1774285811082,-185.7383538,0.00046962,120]
[408807017,1774285811108,-166.98752185,0.00046962,120]
[408807018,1774285811134,-169.57589905,0.00046962,120]
[408807019,1774285811159,-151.94673503,0.00046962,120]
[408807020,1774285811183,-163.71329735,0.00046962,120]
[408807021,1774285811208,-183.41675914,0.00046962,120]
[408807022,1774285811232,-157.71958966,0.00046962,120]
[408807023,1774285811257,-166.23323674,0.00046962,120]
[408807024,1774285811282,-192.51722,0.00046962,45]
[408807025,1774285811308,-192.51722,0.00046962,45]
[408807026,1774285811333,-192.51722,0.00046962,45]
[408807027,1774285811358,-154.63786155,0.00046962,120]
[408807028,1774285811384,-157.32679798,0.00046962,120]
[408807029,1774285811409,-249.0,0.00046962,120]
[408807030,1774285811433,-163.52026498,0.00046962,120]
[408807031,1774285811458,-152.78369506,0.00046962,120]
[408807032,1774285811489,-161.46009487,0.00046962,120]
[408807033,1774285811515,-150.6644079,0.00046962,120]
[408807034,1774285811544,-161.65,0.00046962,30]
[408807035,1774285811568,-568.56945972,0.00046962,120]
[408807036,1774285811595,-2500.0,0.00046962,120]
[408807037,1774285811621,-2500.0,0.00046962,120]
[408807038,1774285811648,-2500.0,0.00046962,120]
[408807039,1774285811672,-2500.0,0.00046962,120]
[408807040,1774285811701,-2500.0,0.00046962,120]
[408807041,1774285811729,-2500.0,0.00046962,120]
[408807042,1774285811757,-2500.0,0.00046962,120]
[408807043,1774285811780,-2500.0,0.00046962,120]
[408807044,1774285811806,-2500.0,0.00046962,120]
[408807045,1774285811831,-2500.0,0.00046962,120]
[408807046,1774285811859,-2500.0,0.00046962,120]
[408807047,1774285811884,-2500.0,0.00046962,120]
[408807048,1774285812436,-2500.0,0.00046962,120]
[408807049,1774285812463,-2500.0,0.00046962,120]